fUST/lending_fUST_20240117
["ID","MTS","AMOUNT","RATE_DAILY","PERIOD"]
[311883594,1705488639445,-500.0,0.00021917,2]
[311883596,1705488639456,-500.0,0.00021917,2]
[311883598,1705488639465,-500.0,0.00021917,2]
[311883600,1705488639473,-15748.18,0.00021917,2]
[311883601,1705488639482,-801.42,0.00021917,2]
[311883603,1705488639491,-500.0,0.00021917,2]
[311883605,1705488639500,-500.0,0.00021917,2]
[311883607,1705488639509,-500.0,0.00021917,2]
[311883609,1705488639518,-500.0,0.00021917,2]
[311883611,1705488639527,-1068.65134143,0.00021917,2]
[311883613,1705488639536,-500.0,0.00021917,2]
[311883615,1705488639546,-2592.79,0.00021917,2]
[311883617,1705488639556,-500.0,0.00021917,2]
[311883619,1705488639565,-1547.7,0.00021917,2]
[311883621,1705488639574,-2697.76,0.00021917,2]
[311883623,1705488639584,-500.0,0.00021917,2]
[311883624,1705488639594,-500.0,0.00021917,2]
[311883626,1705488639604,-500.0,0.00021917,2]
[311883628,1705488639613,-500.0,0.00021917,2]
[311883630,1705488639623,-6556.86,0.00021917,2]
[311883632,1705488639632,-500.0,0.00021917,2]
[311883634,1705488639641,-500.0,0.00021917,2]
[311883636,1705488639651,-500.0,0.00021917,2]
[311883638,1705488639660,-753.34,0.00021917,2]
[311883640,1705488639669,-1343.67,0.00021917,2]
[311883642,1705488639678,-500.0,0.00021917,2]
[311883644,1705488639687,-500.0,0.00021917,2]
[311883646,1705488639696,-500.0,0.00021917,2]
[311883648,1705488639707,-500.0,0.00021917,2]
[311883649,1705488639716,-500.0,0.00021917,2]
[311883651,1705488639725,-1253.31,0.00021917,2]
[311883653,1705488639734,-895.98,0.00021917,2]
[311883655,1705488639744,-500.0,0.00021917,2]
[311883657,1705488639754,-500.0,0.00021917,2]
[311883659,1705488639763,-713.45,0.00021917,2]
[311883661,1705488639772,-500.0,0.00021917,2]
[311883663,1705488639781,-1654.58,0.00021917,2]
[311883665,1705488639791,-1552.32,0.00021917,2]
[311883667,1705488639800,-500.0,0.00021917,2]
[311883669,1705488639809,-500.0,0.00021917,2]
[311883671,1705488639818,-500.0,0.00021917,2]
[311883673,1705488639828,-500.0,0.00021917,2]
[311883674,1705488639837,-500.0,0.00021917,2]
[311883676,1705488639847,-506.0700257,0.00021917,2]
[311883678,1705488639856,-1219.24,0.00021917,2]
[311883680,1705488639865,-822.5,0.00021917,2]
[311883682,1705488639874,-17080.73,0.00021917,2]
[311883684,1705488639883,-500.0,0.00021917,2]
[311883686,1705488639892,-500.0,0.00021917,2]
[311883688,1705488639901,-6667.02,0.00021917,2]
[311883690,1705488639910,-1610.51,0.00021917,2]
[311883692,1705488639919,-500.0,0.00021917,2]
[311883694,1705488639929,-8982.81,0.00021917,2]
[311883696,1705488639937,-500.0,0.00021917,2]
[311883697,1705488639951,-500.0,0.00021917,2]
[311883700,1705488639962,-166.666666,0.00021918,2]
[311883701,1705488639971,-9111.67082876,0.00021945,2]
[311883703,1705488639981,-156.86535645,0.00022,2]
[311883705,1705488639991,-425.53656097,0.00022,2]
[311883707,1705488640000,-3955.54830897,0.00022,2]
[311883709,1705488640010,-153.0,0.00022,2]
[311883711,1705488640019,-153.0,0.00022,2]
[311883713,1705488640033,-153.0,0.00022,2]
[311883715,1705488640042,-153.0,0.00022,2]
[311883717,1705488640052,-153.0,0.00022,2]
[311883719,1705488640061,-500.0,0.00022054,2]
[311883720,1705488640071,-500.0,0.00022054,2]
[311883722,1705488640080,-500.0,0.00022054,2]
[311883724,1705488640089,-500.0,0.00022054,2]
[311883726,1705488640098,-500.0,0.00022054,2]
[311883728,1705488640108,-547.60006591,0.00022054,2]
[311883730,1705488640118,-500.0,0.00022054,2]
[311883732,1705488640128,-522.58503635,0.00022054,2]
[311883734,1705488640137,-504.74,0.00022054,2]
[311883736,1705488640146,-500.0,0.00022054,2]
[311883738,1705488640156,-500.0,0.00022054,2]
[311883740,1705488640165,-486.28301242,0.00022054,2]
[311883742,1705488640174,-500.0,0.00022054,2]
[311883744,1705488640183,-678.13,0.00022054,2]
[311883745,1705488640192,-385.46353208,0.00022054,2]
[311883747,1705488640202,-500.0,0.00022054,2]
[311883749,1705488640211,-530.42,0.00022054,2]
[311883751,1705488640220,-500.0,0.00022054,2]
[311883760,1705488640298,-500.0,0.00022054,2]
[311883762,1705488640308,-500.0,0.00022054,2]
[311883764,1705488640317,-500.0,0.00022054,2]
[311883766,1705488640327,-500.0,0.00022054,2]
[311883768,1705488640337,-500.0,0.00022054,2]
[311883770,1705488640346,-500.0,0.00022054,2]
[311883771,1705488640355,-500.0,0.00022054,2]
[311883773,1705488640365,-1360.8,0.00022054,2]
[311883775,1705488640374,-500.0,0.00022054,2]
[311883777,1705488640384,-500.0,0.00022054,2]
[311883779,1705488640393,-932.46,0.00022054,2]
[311883781,1705488640402,-500.0,0.00022054,2]
[311883783,1705488640411,-500.0,0.00022054,2]
[311883785,1705488640420,-500.0,0.00022054,2]
[311883787,1705488640429,-500.0,0.00022054,2]
[311883789,1705488640439,-500.0,0.00022054,2]
[311883791,1705488640447,-500.0,0.00022054,2]
[311883793,1705488640458,-382.58669765,0.00022054,2]
[311883795,1705488640467,-538.61,0.00022054,2]
[311883797,1705488640475,-803.33,0.00022054,2]
[311883798,1705488640484,-500.0,0.00022054,2]
[311883800,1705488640493,-500.0,0.00022054,2]
[311883802,1705488640502,-401.25528764,0.00022054,2]
[311883804,1705488640511,-199.39250185,0.00022054,2]
[311883806,1705488640520,-1164.63,0.00022054,2]
[311883808,1705488640530,-503.30284957,0.00022054,2]
[311883810,1705488640539,-500.0,0.00022054,2]
[311883812,1705488640547,-500.0,0.00022054,2]
[311883814,1705488640556,-500.0,0.00022054,2]
[311883816,1705488640565,-500.0,0.00022054,2]
[311883818,1705488640574,-500.0,0.00022054,2]
[311883820,1705488640583,-500.0,0.00022054,2]
[311883822,1705488640593,-429.95876673,0.00022054,2]
[311883824,1705488640602,-586.54466235,0.00022054,2]
[311883826,1705488640611,-808.54,0.00022054,2]
[311883827,1705488640620,-500.0,0.00022054,2]
[311883829,1705488640629,-500.0,0.00022054,2]
[311883831,1705488640638,-500.0,0.00022054,2]
[311883832,1705488640646,-500.0,0.00022054,2]
[311883833,1705488640655,-500.0,0.00022054,2]
[311883834,1705488640664,-2268.43,0.00022054,2]
[311883835,1705488640673,-500.0,0.00022054,2]
[311883836,1705488640682,-610.97756718,0.00022054,2]
[311883837,1705488640690,-500.0,0.00022054,2]
[311883838,1705488640699,-1627.49,0.00022054,2]
[311883839,1705488640708,-470.46759968,0.00022054,2]
[311883840,1705488640717,-3446.15,0.00022054,2]
[311883841,1705488640726,-500.0,0.00022054,2]
[311883842,1705488640735,-500.0,0.00022054,2]
[311883843,1705488640743,-500.0,0.00022054,2]
[311883844,1705488640752,-627.6,0.00022054,2]
[311883845,1705488640761,-444.85689834,0.00022054,2]
[311883846,1705488640770,-500.0,0.00022054,2]
[311883847,1705488640779,-500.0,0.00022054,2]
[311883848,1705488640788,-500.0,0.00022054,2]
[311883849,1705488640797,-500.0,0.00022054,2]
[311883850,1705488640805,-1820.61,0.00022054,2]
[311883851,1705488640816,-500.0,0.00022054,2]
[311883852,1705488640825,-500.0,0.00022054,2]
[311883853,1705488640834,-825.48,0.00022054,2]
[311883854,1705488640843,-500.0,0.00022054,2]
[311883855,1705488640851,-518.28,0.00022054,2]
[311883856,1705488640860,-500.0,0.00022054,2]
[311883857,1705488640869,-584.66,0.00022054,2]
[311883858,1705488640878,-3033.06,0.00022054,2]
[311883859,1705488640887,-500.0,0.00022054,2]
[311883860,1705488640896,-500.0,0.00022054,2]
[311883861,1705488640904,-500.0,0.00022054,2]
[311883862,1705488640913,-500.0,0.00022054,2]
[311883863,1705488640922,-500.0,0.00022054,2]
[311883864,1705488640931,-2888.11,0.00022054,2]
[311883865,1705488640940,-344.85757155,0.00022054,2]
[311883866,1705488640950,-500.0,0.00022054,2]
[311883867,1705488640960,-500.0,0.00022054,2]
[311883868,1705488640969,-752.21,0.00022054,2]
[311883869,1705488640978,-500.0,0.00022054,2]
[311883870,1705488640987,-500.0,0.00022054,2]
[311883871,1705488640997,-500.0,0.00022054,2]
[311883872,1705488641006,-500.0,0.00022054,2]
[311883873,1705488641015,-500.0,0.00022054,2]
[311883874,1705488641023,-500.0,0.00022054,2]
[311883875,1705488641032,-769.97,0.00022054,2]
[311883876,1705488641042,-796.42,0.00022054,2]
[311883877,1705488641051,-27548.41,0.00022054,2]
[311883878,1705488641060,-500.0,0.00022054,2]
[311883879,1705488641069,-500.0,0.00022054,2]
[311883880,1705488641078,-500.0,0.00022054,2]
[311883881,1705488641087,-500.0,0.00022054,2]
[311883882,1705488641096,-2140.41,0.00022054,2]
[311883884,1705488641105,-5803.51,0.00022054,2]
[311883886,1705488641115,-500.0,0.00022054,2]
[311883888,1705488641125,-500.0,0.00022054,2]
[311883890,1705488641135,-500.0,0.00022054,2]
[311883892,1705488641144,-500.0,0.00022054,2]
[311883894,1705488641153,-500.0,0.00022054,2]
[311883896,1705488641162,-15748.18,0.00022054,2]
[311883898,1705488641171,-801.42,0.00022054,2]
[311883900,1705488641180,-500.0,0.00022054,2]
[311883902,1705488641189,-500.0,0.00022054,2]
[311883904,1705488641198,-500.0,0.00022054,2]
[311883906,1705488641208,-500.0,0.00022054,2]
[311883908,1705488641217,-2592.79,0.00022054,2]
[311883910,1705488641226,-500.0,0.00022054,2]
[311883912,1705488641235,-1547.7,0.00022054,2]
[311883914,1705488641244,-2697.76,0.00022054,2]
[311883916,1705488641253,-500.0,0.00022054,2]
[311883917,1705488641262,-500.0,0.00022054,2]
[311883920,1705488641272,-500.0,0.00022054,2]
[311883922,1705488641281,-6556.86,0.00022054,2]
[311883924,1705488641290,-500.0,0.00022054,2]
[311883926,1705488641300,-500.0,0.00022054,2]
[311883928,1705488641309,-500.0,0.00022054,2]
[311883930,1705488641318,-753.34,0.00022054,2]
[311883932,1705488641328,-1343.67,0.00022054,2]
[311883933,1705488641337,-500.0,0.00022054,2]
[311883935,1705488641346,-500.0,0.00022054,2]
[311883937,1705488641355,-500.0,0.00022054,2]
[311883939,1705488641364,-500.0,0.00022054,2]
[311883941,1705488641374,-1253.31,0.00022054,2]
[311883943,1705488641384,-895.98,0.00022054,2]
[311883945,1705488641393,-500.0,0.00022054,2]
[311883947,1705488641402,-713.45,0.00022054,2]
[311883949,1705488641411,-500.0,0.00022054,2]
[311883951,1705488641421,-1654.58,0.00022054,2]
[311883952,1705488641431,-1552.32,0.00022054,2]
[311883954,1705488641439,-500.0,0.00022054,2]
[311883956,1705488641449,-201.66657356,0.00022054,2]
[311883958,1705488641459,-500.0,0.00022054,2]
[311883960,1705488641468,-500.0,0.00022054,2]
[311883963,1705488641485,-1219.24,0.00022054,2]
[311883965,1705488641494,-822.5,0.00022054,2]
[311883967,1705488641503,-17080.73,0.00022054,2]
[311883969,1705488641512,-500.0,0.00022054,2]
[311883971,1705488641521,-6667.02,0.00022054,2]
[311883972,1705488641530,-1610.51,0.00022054,2]
[311883974,1705488641538,-500.0,0.00022054,2]
[311883976,1705488641547,-8982.81,0.00022054,2]
[311883978,1705488641556,-500.0,0.00022054,2]
[311883980,1705488641565,-153.0,0.000221,2]
[311883982,1705488641574,-393.3506667,0.000221,2]
[311883984,1705488641582,-153.0,0.000221,2]
[311883986,1705488641593,-153.0,0.000221,2]
[311883988,1705488641602,-306.0,0.000221,2]
[311883990,1705488641611,-198.957615,0.000221,2]
[311883992,1705488641620,-153.0,0.000221,2]
[311883994,1705488641629,-153.0,0.000221,2]
[311883996,1705488641638,-198.957615,0.000221,2]
[311883998,1705488641646,-153.0,0.000221,2]
[311884000,1705488641656,-151.0,0.00022191,2]
[311884002,1705488641665,-378.091753,0.00022191,2]
[311884003,1705488641675,-378.091753,0.00022191,2]
[311884005,1705488641684,-584.167224,0.00022191,2]
[311884007,1705488641693,-584.167224,0.00022191,2]
[311884009,1705488641703,-500.0,0.00022191,2]
[311884011,1705488641712,-500.0,0.00022191,2]
[311884013,1705488641721,-375.08228626,0.00022191,2]
[311884015,1705488641730,-383.96915112,0.00022191,2]
[311884017,1705488641740,-500.0,0.00022191,2]
[311884019,1705488641749,-504.74,0.00022191,2]
[311884021,1705488641758,-500.0,0.00022191,2]
[311884023,1705488641767,-615.47939903,0.00022191,2]
[311884025,1705488641776,-678.13,0.00022191,2]
[311884027,1705488641785,-500.0,0.00022191,2]
[311884029,1705488641794,-530.42,0.00022191,2]
[311884031,1705488641803,-500.0,0.00022191,2]
[311884040,1705488641882,-500.0,0.00022191,2]
[311884042,1705488641891,-500.0,0.00022191,2]
[311884044,1705488641901,-500.0,0.00022191,2]
[311884046,1705488641912,-500.0,0.00022191,2]
[311884048,1705488641921,-500.0,0.00022191,2]
[311884050,1705488641930,-505.90431554,0.00022191,2]
[311884052,1705488641940,-1360.8,0.00022191,2]
[311884054,1705488641952,-506.04587951,0.00022191,2]
[311884056,1705488641965,-932.46,0.00022191,2]
[311884058,1705488641978,-500.0,0.00022191,2]
[311884060,1705488641988,-500.0,0.00022191,2]
[311884062,1705488641999,-500.0,0.00022191,2]
[311884064,1705488642009,-500.0,0.00022191,2]
[311884066,1705488642020,-500.0,0.00022191,2]
[311884068,1705488642031,-538.61,0.00022191,2]
[311884070,1705488642040,-803.33,0.00022191,2]
[311884072,1705488642050,-167.60150433,0.00022191,2]
[311884073,1705488642059,-500.0,0.00022191,2]
[311884075,1705488642068,-1164.63,0.00022191,2]
[311884077,1705488642078,-500.0,0.00022191,2]
[311884079,1705488642087,-500.0,0.00022191,2]
[311884081,1705488642096,-500.0,0.00022191,2]
[311884083,1705488642105,-500.0,0.00022191,2]
[311884085,1705488642115,-808.54,0.00022191,2]
[311884087,1705488642124,-500.0,0.00022191,2]
[311884089,1705488642132,-506.36136308,0.00022191,2]
[311884090,1705488642141,-500.0,0.00022191,2]
[311884092,1705488642150,-500.0,0.00022191,2]
[311884094,1705488642159,-500.0,0.00022191,2]
[311884096,1705488642168,-2268.43,0.00022191,2]
[311884098,1705488642178,-592.28485347,0.00022191,2]
[311884100,1705488642187,-1627.49,0.00022191,2]
[311884102,1705488642195,-3446.15,0.00022191,2]
[311884104,1705488642207,-346.62671906,0.00022191,2]
[311884106,1705488642216,-234.02972932,0.00022191,2]
[311884108,1705488642225,-500.0,0.00022191,2]
[311884110,1705488642234,-627.6,0.00022191,2]
[311884112,1705488642243,-500.0,0.00022191,2]
[311884114,1705488642252,-500.0,0.00022191,2]
[311884115,1705488642261,-500.0,0.00022191,2]
[311884117,1705488642270,-1820.61,0.00022191,2]
[311884119,1705488642279,-500.0,0.00022191,2]
[311884121,1705488642289,-500.0,0.00022191,2]
[311884123,1705488642298,-825.48,0.00022191,2]
[311884125,1705488642308,-500.0,0.00022191,2]
[311884127,1705488642317,-518.28,0.00022191,2]
[311884129,1705488642327,-500.0,0.00022191,2]
[311884131,1705488642336,-584.66,0.00022191,2]
[311884133,1705488642345,-3033.06,0.00022191,2]
[311884135,1705488642354,-500.0,0.00022191,2]
[311884137,1705488642363,-619.60676546,0.00022191,2]
[311884139,1705488642372,-500.0,0.00022191,2]
[311884141,1705488642382,-500.0,0.00022191,2]
[311884143,1705488642390,-500.0,0.00022191,2]
[311884145,1705488642399,-2888.11,0.00022191,2]
[311884147,1705488642408,-500.0,0.00022191,2]
[311884149,1705488642417,-500.0,0.00022191,2]
[311884151,1705488642426,-752.21,0.00022191,2]
[311884153,1705488642435,-519.27138741,0.00022191,2]
[311884155,1705488642445,-500.0,0.00022191,2]
[311884157,1705488642454,-500.0,0.00022191,2]
[311884159,1705488642463,-500.0,0.00022191,2]
[311884161,1705488642472,-500.0,0.00022191,2]
[311884163,1705488642482,-769.97,0.00022191,2]
[311884165,1705488642491,-796.42,0.00022191,2]
[311884166,1705488642500,-27548.41,0.00022191,2]
[311884168,1705488642510,-500.0,0.00022191,2]
[311884170,1705488642519,-500.0,0.00022191,2]
[311884172,1705488642529,-500.0,0.00022191,2]
[311884174,1705488642538,-500.0,0.00022191,2]
[311884176,1705488642547,-2140.41,0.00022191,2]
[311884178,1705488642555,-5803.51,0.00022191,2]
[311884180,1705488642565,-500.0,0.00022191,2]
[311884182,1705488642574,-500.0,0.00022191,2]
[311884184,1705488642583,-500.0,0.00022191,2]
[311884186,1705488642593,-224.20797195,0.00022191,2]
[311884188,1705488642603,-500.0,0.00022191,2]
[311884190,1705488642612,-15748.18,0.00022191,2]
[311884192,1705488642622,-801.42,0.00022191,2]
[311884194,1705488642630,-608.64434299,0.00022191,2]
[311884196,1705488642639,-629.84713767,0.00022191,2]
[311884198,1705488642648,-500.0,0.00022191,2]
[311884200,1705488642658,-500.0,0.00022191,2]
[311884202,1705488642667,-2592.79,0.00022191,2]
[311884204,1705488642678,-500.0,0.00022191,2]
[311884206,1705488642688,-1547.7,0.00022191,2]
[311884208,1705488642697,-2697.76,0.00022191,2]
[311884210,1705488642708,-500.0,0.00022191,2]
[311884212,1705488642717,-500.0,0.00022191,2]
[311884214,1705488642726,-500.0,0.00022191,2]
[311884216,1705488642735,-6556.86,0.00022191,2]
[311884218,1705488642744,-500.0,0.00022191,2]
[311884220,1705488642753,-500.0,0.00022191,2]
[311884222,1705488642762,-753.34,0.00022191,2]
[311884224,1705488642771,-1343.67,0.00022191,2]
[311884226,1705488642780,-500.0,0.00022191,2]
[311884228,1705488642789,-500.0,0.00022191,2]
[311884230,1705488642798,-500.0,0.00022191,2]
[311884235,1705488642807,-1253.31,0.00022191,2]
[311884240,1705488642817,-895.98,0.00022191,2]
[311884244,1705488642826,-500.0,0.00022191,2]
[311884248,1705488642834,-713.45,0.00022191,2]
[311884251,1705488642843,-500.0,0.00022191,2]
[311884255,1705488642852,-1654.58,0.00022191,2]
[311884259,1705488642862,-1552.32,0.00022191,2]
[311884263,1705488642871,-515.61152056,0.00022191,2]
[311884265,1705488642880,-646.32186224,0.00022191,2]
[311884269,1705488642889,-500.0,0.00022191,2]
[311884273,1705488642898,-1219.24,0.00022191,2]
[311884277,1705488642906,-822.5,0.00022191,2]
[311884281,1705488642916,-17080.73,0.00022191,2]
[311884285,1705488642925,-500.0,0.00022191,2]
[311884289,1705488642933,-6667.02,0.00022191,2]
[311884293,1705488642943,-1610.51,0.00022191,2]
[311884296,1705488642956,-500.0,0.00022191,2]
[311884299,1705488642965,-8982.81,0.00022191,2]
[311884302,1705488642974,-500.0,0.00022191,2]
[311884305,1705488642985,-153.0,0.000222,2]
[311884308,1705488642994,-2165.21424198,0.00022238,2]
[311884311,1705488643003,-151.0,0.00022328,2]
[311884314,1705488643012,-151.0,0.00022328,2]
[311884317,1705488643021,-173.939081,0.00022328,2]
[311884320,1705488643031,-378.091753,0.00022328,2]
[311884322,1705488643040,-378.091753,0.00022328,2]
[311884324,1705488643049,-584.167224,0.00022328,2]
[311884326,1705488643058,-584.167224,0.00022328,2]
[311884329,1705488643067,-500.0,0.00022328,2]
[311884332,1705488643077,-504.74,0.00022328,2]
[311884335,1705488643086,-500.0,0.00022328,2]
[311884338,1705488643095,-678.13,0.00022328,2]
[311884341,1705488643104,-500.0,0.00022328,2]
[311884343,1705488643113,-530.42,0.00022328,2]
[311884346,1705488643123,-500.0,0.00022328,2]
[311884349,1705488643132,-500.0,0.00022328,2]
[311884352,1705488643141,-500.0,0.00022328,2]
[311884355,1705488643150,-1360.8,0.00022328,2]
[311884358,1705488643158,-932.46,0.00022328,2]
[311884361,1705488643167,-500.0,0.00022328,2]
[311884363,1705488643176,-500.0,0.00022328,2]
[311884366,1705488643185,-500.0,0.00022328,2]
[311884369,1705488643194,-500.0,0.00022328,2]
[311884372,1705488643205,-500.0,0.00022328,2]
[311884375,1705488643215,-538.61,0.00022328,2]
[311884378,1705488643224,-803.33,0.00022328,2]
[311884381,1705488643232,-500.0,0.00022328,2]
[311884384,1705488643241,-1164.63,0.00022328,2]
[311884387,1705488643250,-500.0,0.00022328,2]
[311884390,1705488643258,-500.0,0.00022328,2]
[311884393,1705488643268,-500.0,0.00022328,2]
[311884396,1705488643277,-808.54,0.00022328,2]
[311884399,1705488643286,-500.0,0.00022328,2]
[311884411,1705488643295,-500.0,0.00022328,2]
[311884413,1705488643368,-500.0,0.00022328,2]
[311884415,1705488643377,-2268.43,0.00022328,2]
[311884417,1705488643389,-1627.49,0.00022328,2]
[311884419,1705488643398,-3446.15,0.00022328,2]
[311884421,1705488643407,-500.0,0.00022328,2]
[311884423,1705488643417,-627.6,0.00022328,2]
[311884425,1705488643426,-500.0,0.00022328,2]
[311884427,1705488643436,-500.0,0.00022328,2]
[311884429,1705488643444,-500.0,0.00022328,2]
[311884431,1705488643454,-1820.61,0.00022328,2]
[311884433,1705488643463,-500.0,0.00022328,2]
[311884435,1705488643472,-305.08682904,0.00022328,2]
[311884437,1705488643481,-825.48,0.00022328,2]
[311884439,1705488643490,-505.42235422,0.00022328,2]
[311884441,1705488643498,-518.28,0.00022328,2]
[311884443,1705488643507,-500.0,0.00022328,2]
[311884445,1705488643516,-584.66,0.00022328,2]
[311884446,1705488643526,-3033.06,0.00022328,2]
[311884447,1705488643534,-420.57604732,0.00022328,2]
[311884448,1705488643544,-500.0,0.00022328,2]
[311884449,1705488643553,-500.0,0.00022328,2]
[311884450,1705488643562,-500.0,0.00022328,2]
[311884451,1705488643571,-2888.11,0.00022328,2]
[311884452,1705488643580,-500.0,0.00022328,2]
[311884453,1705488643589,-190.52563167,0.00022328,2]
[311884454,1705488643599,-752.21,0.00022328,2]
[311884455,1705488643609,-500.0,0.00022328,2]
[311884456,1705488643618,-500.0,0.00022328,2]
[311884457,1705488643627,-500.0,0.00022328,2]
[311884459,1705488643637,-500.0,0.00022328,2]
[311884462,1705488643646,-769.97,0.00022328,2]
[311884463,1705488643655,-796.42,0.00022328,2]
[311884465,1705488643664,-27548.41,0.00022328,2]
[311884467,1705488643673,-500.0,0.00022328,2]
[311884469,1705488643683,-500.0,0.00022328,2]
[311884471,1705488643692,-500.0,0.00022328,2]
[311884473,1705488643701,-500.0,0.00022328,2]
[311884476,1705488643712,-2140.41,0.00022328,2]
[311884478,1705488643721,-5803.51,0.00022328,2]
[311884480,1705488643731,-500.0,0.00022328,2]
[311884482,1705488643739,-500.0,0.00022328,2]
[311884484,1705488643748,-500.0,0.00022328,2]
[311884486,1705488643757,-500.0,0.00022328,2]
[311884488,1705488643766,-15748.18,0.00022328,2]
[311884489,1705488643776,-801.42,0.00022328,2]
[311884491,1705488643785,-500.0,0.00022328,2]
[311884493,1705488643794,-500.0,0.00022328,2]
[311884495,1705488643803,-2592.79,0.00022328,2]
[311884497,1705488643812,-500.0,0.00022328,2]
[311884499,1705488643821,-1547.7,0.00022328,2]
[311884501,1705488643831,-2697.76,0.00022328,2]
[311884504,1705488643841,-500.0,0.00022328,2]
[311884506,1705488643850,-500.0,0.00022328,2]
[311884508,1705488643859,-6556.86,0.00022328,2]
[311884509,1705488643868,-500.0,0.00022328,2]
[311884511,1705488643877,-500.0,0.00022328,2]
[311884513,1705488643886,-753.34,0.00022328,2]
[311884515,1705488643895,-1343.67,0.00022328,2]
[311884517,1705488643904,-500.0,0.00022328,2]
[311884519,1705488643913,-500.0,0.00022328,2]
[311884521,1705488643922,-500.0,0.00022328,2]
[311884523,1705488643931,-1253.31,0.00022328,2]
[311884525,1705488643941,-895.98,0.00022328,2]
[311884527,1705488643951,-500.0,0.00022328,2]
[311884529,1705488643962,-713.45,0.00022328,2]
[311884531,1705488643971,-500.0,0.00022328,2]
[311884533,1705488643980,-1654.58,0.00022328,2]
[311884535,1705488643990,-1552.32,0.00022328,2]
[311884537,1705488644000,-1219.24,0.00022328,2]
[311884539,1705488644009,-822.5,0.00022328,2]
[311884541,1705488644018,-17080.73,0.00022328,2]
[311884543,1705488644028,-500.0,0.00022328,2]
[311884545,1705488644037,-6667.02,0.00022328,2]
[311884547,1705488644047,-1610.51,0.00022328,2]
[311884549,1705488644056,-500.0,0.00022328,2]
[311884551,1705488644065,-3142.08563621,0.00022328,2]
[311884566,1705488644193,-5840.72436379,0.00022328,2]
[311884568,1705488644204,-500.0,0.00022328,2]
[311884570,1705488644214,-166.666666,0.00022431,2]
[311884572,1705488644223,-151.0,0.00022465,2]
[311884574,1705488644232,-151.0,0.00022465,2]
[311884576,1705488644241,-151.0,0.00022465,2]
[311884578,1705488644250,-151.0,0.00022465,2]
[311884580,1705488644259,-178.0,0.00022465,2]
[311884582,1705488644268,-378.091753,0.00022465,2]
[311884584,1705488644277,-378.091753,0.00022465,2]
[311884586,1705488644286,-584.167224,0.00022465,2]
[311884588,1705488644296,-584.167224,0.00022465,2]
[311884590,1705488644305,-584.167224,0.00022465,2]
[311884592,1705488644314,-584.167224,0.00022465,2]
[311884594,1705488644323,-155.19550799,0.00022465,2]
[311884596,1705488644333,-448.12773295,0.00022465,2]
[311884598,1705488644342,-10315.90340121,0.00022465,2]
[311884600,1705488644352,-1353.00683972,0.00022465,5]
[311884602,1705488644361,-463.7706374,0.00022465,2]
[311884604,1705488644369,-504.74,0.00022465,2]
[311884605,1705488644378,-494.87615425,0.00022465,2]
[311884608,1705488644387,-678.13,0.00022465,2]
[311884610,1705488644397,-380.75533972,0.00022465,2]
[311884612,1705488644406,-530.42,0.00022465,2]